[Event "Caplin Hastings Masters 2023-24"]
[Site "Hastings"]
[Date "2024.01.01"]
[Round "5.12"]
[White "Lux, Hugo de Melo"]
[Black "Boyer, Mahel"]
[Result "1-0"]
[ECO "C62"]
[WhiteElo "2311"]
[BlackElo "2427"]
[Annotator "RC"]
[PlyCount "115"]
[EventDate "2023.12.18"]
[EventType "swiss"]
[EventCountry "ENG"]
[SourceTitle "playchess.com"]
[Source "ChessBase"]
[SourceQuality "1"]
[TimeControl "40/6000+30:3000+30"]

1. e4 {[%emt 0:04:18]} Nc6 {[%emt 0:04:18]} 2. Nf3 {[%emt 0:00:45]} d6 {[%emt 0:00:11]} 3. d4 {[%emt 0:00:21]} Nf6 {[%emt 0:00:13]} 4. Nc3 {[%emt 0:01:30]} e5 {[%emt 0:00:08]} 5. Bb5 {[%emt 0:10:19]} exd4 {[%emt 0:00:40]} 6. Nxd4 {[%emt 0:06:11]} Bd7 {[%emt 0:00:06]} 7. Bxc6 {[%emt 0:06:24]} bxc6 {[%emt 0:00:05]} 8. Qf3 {[%emt 0:00:58]} Bg4 {[%emt 0:01:17]} 9. Qg3 {[%emt 0:06:20]} c5 {[%emt 0:00:14]} 10. Nf5 {[%emt 0:02:52]} Bxf5 {[%emt 0:52:59]} 11. exf5 {[%emt 0:00:06]} Be7 {[%emt 0:00:01]} 12. O-O {[%emt 0:06:34]} O-O {[%emt 0:00:10]} 13. Bh6 {[%emt 0:04:09]} Ne8 {[%emt 0:00:06]} 14. Nd5 {[%emt 0:04:02]} Bh4 {[%emt 0:13:17]} 15. Qg4 {[%emt 0:01:07]} Kh8 {[%emt 0:02:37]} 16. Bd2 {[%emt 0:18:23]} c6 {[%emt 0:06:30]} 17. Nf4 {[%emt 0:01:01]} Bf6 {[%emt 0:00:07]} 18. c3 {[%emt 0:13:18]} Rb8 {[%emt 0:02:33]} 19. b3 {[%emt 0:00:06]} Qd7 {[%emt 0:09:09]} 20. Nh5 {[%emt 0:05:13]} g6 {[%emt 0:00:35]} 21. Nxf6 {[%emt 0:10:46]} Nxf6 {[%emt 0:00:04]} 22. Qf3 {[%emt 0:00:57]} gxf5 {[%emt 0:00:21]} 23. Rfe1 {[%emt 0:02:02]} Rbe8 {[%emt 0:00:31]} 24. Bg5 {[%emt 0:00:49]} Re6 {[%emt 0:00:39]} 25. Re3 {[%emt 0:01:30]} Ne4 {[%emt 0:15:37]} 26. Qxf5 {[%emt 0:00:30]} Nxg5 {[%emt 0:00:21]} 27. Qxg5 {[%emt 0:00:05]} Rg8 {[%emt 0:00:39]} 28. Qf4 {[%emt 0:00:08]} Rxe3 {[%emt 0:00:30]} 29. Qf6+ {[%emt 0:03:21]} Rg7 {[%emt 0:00:01]} 30. fxe3 {[%emt 0:00:07]} Qe6 {[%emt 0:00:23]} 31. Qxe6 {[%emt 0:00:25]} fxe6 {[%emt 0:00:01]} 32. Rf1 {[%emt 0:00:08]} Kg8 {[%emt 0:00:05]} 33. Rf6 {[%emt 0:00:10]} Re7 {[%emt 0:00:29]} 34. g4 {[%emt 0:01:55]} a5 {[%emt 0:00:14]} 35. Kg2 {[%emt 0:00:37]} a4 {[%emt 0:00:50]} 36. bxa4 {[%emt 0:00:01]} Ra7 {[%emt 0:00:17]} 37. Rxe6 {[%emt 0:00:12]} Rxa4 {[%emt 0:00:02]} 38. Rxd6 {[%emt 0:00:27]} Rxg4+ {[%emt 0:00:04]} 39. Kf3 {[%emt 0:00:28]} Rc4 {[%emt 0:00:38]} 40. Rxc6 {[%emt 0:00:15]} Rxc3 {[%emt 0:00:03]} 41. h4 {[%emt 0:08:41]} Ra3 {[%emt 0:06:26]} 42. Rxc5 {[%emt 0:00:28]} Rxa2 {[%emt 0:00:02]} 43. Rf5 {[%emt 0:00:55]} Kg7 {[%emt 0:01:03]} 44. h5 {[%emt 0:00:31]} Kh6 {[%emt 0:00:03]} 45. e4 {[%emt 0:00:43]} Ra3+ {[%emt 0:02:14]} 46. Kf4 {[%emt 0:05:53]} Ra4 {[%emt 0:00:04]} 47. Rb5 {[%emt 0:02:34]} Ra1 {[%emt 0:03:14]} 48. Rf5 {[%emt 0:16:52]} Ra4 {[%emt 0:00:19]} 49. Kf3 {[%emt 0:00:07]} Ra3+ {[%emt 0:00:59]} 50. Kg4 {[%emt 0:00:09]} Ra4 {[%emt 0:00:22]} 51. Rf6+ {[%emt 0:00:18]} Kg7 {[%emt 0:00:01]} 52. Kf5 {[%emt 0:00:11]} h6 {[%emt 0:03:52]} 53. Rg6+ {[%emt 0:01:31]} Kh7 {[%emt 0:00:08]} 54. e5 {[%emt 0:02:29]} Rh4 {[%emt 0:02:34]} 55. e6 {[%emt 0:00:19]} Rxh5+ {[%emt 0:00:04]} 56. Kf6 {[%emt 0:00:05]} Rh1 {[%emt 0:01:03]} 57. Kf7 {[%emt 0:00:24]} Re1 {[%emt 0:03:36]} 58. Rf6 {[%emt 0:00:11]} 1-0

[Event "Caplin Hastings Masters 2023-24"]
[Site "Hastings"]
[Date "2024.01.01"]
[Round "5.13"]
[White "Edouard, Romain"]
[Black "Villiers, Thomas"]
[Result "1-0"]
[ECO "B30"]
[WhiteElo "2527"]
[BlackElo "2230"]
[Annotator "TA"]
[PlyCount "79"]
[EventDate "2023.12.18"]
[EventType "swiss"]
[EventCountry "ENG"]
[SourceTitle "playchess.com"]
[Source "ChessBase"]
[SourceQuality "1"]
[TimeControl "40/6000+30:3000+30"]

{[%evp 11,79,15,25,24,31,31,55,-22,16,-11,-16,-29,0,-35,0,0,10,8,85,66,65,54,77,48,68,17,113,35,38,45,43,39,165,0,27,20,25,22,26,17,20,20,71,88,68,67,356,358,335,352,339,321,956,876,790,1061,1064,1068,1035,1071,1016,1012,979,985,908,905,1768,1027,5266,2390]} 1. e4 {[%emt 0:01:17]} c5 {[%emt 0:00:15]} 2. Nf3 {[%emt 0:00:07]} Nc6 {[%emt 0:00:20]} 3. Bb5 {[%emt 0:01:01]} e6 {[%emt 0:00:07]} 4. O-O {[%emt 0:00:35]} Nge7 {[%emt 0:00:09]} 5. d4 {[%emt 0:00:15]} cxd4 {[%emt 0:00:46]} 6. Nxd4 {[%emt 0:00:03]} Qb6 {[%emt 0:00:43]} 7. Nxc6 {[%emt 0:00:39] B30: Sicilian: 2...Nc6 3 Bb5, lines without ...g6.} bxc6 {[%emt 0:05:01]} 8. Be2 {[%emt 0:01:46]} d5 {[%emt 0:03:13]} 9. c4 {[%emt 0:00:37] [#]} (9. exd5 $14 cxd5 10. b3) 9... d4 $146 {[%emt 0:01:35]} ({Predecessor:} 9... dxe4 10. Nc3 f5 11. Na4 Qc7 12. f3 exf3 13. Bxf3 Ng6 14. Bg5 Bd6 15. h4 h6 {1-0 Levi,N (2206)-Dvoirys,S (2452) ISR-chT Israel 2021 (4.3)}) 10. Bd3 {[%emt 0:02:15][%cal Oc4c5]} c5 {[%emt 0:00:50]} 11. f4 {[%emt 0:00:51]} Nc6 {[%emt 0:00:41]} 12. a3 {[%emt 0:00:36]} Be7 {[%emt 0:03:31]} 13. e5 {[%emt 0:00:23]} Bb7 {[%emt 0:01:00]} 14. Nd2 {[%emt 0:00:12]} O-O-O {[%emt 0:02:31]} (14... g6 $11) 15. Ne4 {[%emt 0:00:34][%cal Ob2b4]} f5 {[%emt 0:00:17]} 16. exf6 {[%emt 0:00:06]} gxf6 {[%emt 0:00:13][%cal Bg7f6,Bf6f5][%mdl 32]} 17. Qe2 {[%emt 0:02:13][%cal Ob2b4] White is more active.} Rhg8 {[%emt 0:03:09]} 18. Bd2 {[%emt 0:11:11]} (18. Nxf6 $2 Bxf6 19. g3 (19. Bxh7 $2 Na5 $19) (19. Qxe6+ $2 Kb8 $19) 19... Na5 $19) (18. b4 $14) 18... Nb8 {[%emt 0:04:04] [#]} (18... Qxb2 $2 19. Rfb1 $18) (18... Rg6 $1 $11) 19. b4 {[%emt 0:00:56]} Nd7 {[%emt 0:00:31]} 20. Rab1 {[%emt 0:02:10]} f5 {[%emt 0:01:14]} 21. Ng5 {[%emt 0:00:30] aiming for bxc5.} (21. bxc5 Qc6 22. Ng5 Nxc5 $17) 21... h6 {[%emt 0:06:09]} ({Black should try} 21... Rg6 $14) 22. Nf3 $2 {[%emt 0:00:29]} (22. Nxe6 $2 Rxg2+ 23. Qxg2 Bxg2 24. Nxd8 Bxf1 25. Kxf1 Kxd8 $19) (22. bxc5 $18 Qc6 23. Rxb7 (23. Nxe6 Rxg2+ 24. Kh1 Rg1+ {[%mdl 64] Decoy} 25. Kxg1 Qh1+ 26. Kf2 Bh4#) 23... hxg5 24. Rxa7 (24. Rfb1 Bxc5 25. fxg5 Bb6 $16) 24... Bxc5 25. Ra5 gxf4 26. Rxf4 (26. Bxf4 e5 $15)) 22... Qc6 {[%emt 0:04:37]} 23. b5 {[%emt 0:24:15]} Qd6 {[%emt 0:01:45]} 24. Rbe1 {[%emt 0:00:07]} Rg6 {[%emt 0:01:36] [#]} 25. Bxf5 $1 {[%emt 0:00:33]} exf5 {[%emt 0:00:15]} 26. Qxe7 {[%emt 0:00:03]} Be4 {[%emt 0:09:04]} (26... Rdg8 $11 {remains equal.} 27. Qxd6 Rxd6) 27. Rxe4 $1 $16 {[%emt 0:00:55]} fxe4 {[%emt 0:00:08]} 28. Qxe4 {[%emt 0:00:03] f5 would be deadly.} Rdg8 $2 {[%emt 0:01:48][%mdl 8192] [#]} (28... Re6 $14 29. Qa8+ Qb8) 29. Nh4 $1 $18 {[%emt 0:02:48]} Rg4 {[%emt 0:01:16] [#]} 30. Nf5 {[%emt 0:00:58]} Rxg2+ {[%emt 0:00:32]} 31. Kh1 $1 {[%emt 0:00:02]} Qf6 {[%emt 0:00:41]} (31... Qb6 $2 32. Ba5 Nf6 33. Qa8+ Kd7 34. Qxg2 (34. Bxb6 Rxa8 35. Bxc5 Rc2 $14) 34... Rxg2 35. Bxb6 $18) (31... Qc7 32. Qa8+ (32. Nxh6 R8g7 $14) 32... Nb8) 32. Ne7+ {[%emt 0:01:16] White is clearly winning.} (32. Qxg2 $2 {loses.} Rxg2 33. Kxg2 Qxf5 $19) 32... Qxe7 {[%emt 0:01:50]} 33. Qxe7 {[%emt 0:00:12]} Rxd2 {[%emt 0:00:05]} 34. Qe6 {[%emt 0:01:19]} Rgg2 {[%emt 0:01:46]} 35. Qc6+ {[%emt 0:00:10]} Kd8 {[%emt 0:00:05]} 36. Qxg2 {[%emt 0:02:32]} Rxg2 {[%emt 0:00:05]} 37. Kxg2 {[%emt 0:00:02]} Nb6 {[%emt 0:00:08]} 38. Rc1 {[%emt 0:00:12]} d3 {[%emt 0:00:13]} 39. Rc3 {[%emt 0:03:06]} Nxc4 {[%emt 0:00:10]} 40. Rxd3+ {[%emt 0:00:00] Ingenious play by Edouard!   Weighted Error Value: White=0.21 (precise) /Black=0.47} (40. Rxc4 $2 {is the wrong capture.} d2 41. Kf3 d1=Q+ $19) 1-0

[Event "Caplin Hastings Masters 2023-24"]
[Site "Hastings"]
[Date "2024.01.01"]
[Round "5.14"]
[White "Mikhalevski, Victor"]
[Black "Boswell, Jacob Connor"]
[Result "1-0"]
[ECO "A13"]
[WhiteElo "2524"]
[BlackElo "2235"]
[Annotator "TA"]
[PlyCount "63"]
[EventDate "2023.12.18"]
[EventType "swiss"]
[EventCountry "ENG"]
[SourceTitle "playchess.com"]
[Source "ChessBase"]
[SourceQuality "1"]
[TimeControl "40/6000+30:3000+30"]

{[%evp 14,63,0,4,12,7,14,26,18,23,15,20,27,25,23,18,63,54,62,48,75,75,79,86,83,90,89,74,77,85,83,83,170,147,229,228,255,255,295,301,5792,5814,2808,2883,2388,2027,29977,29973,29938,12851,29992,29993]} 1. Nf3 {[%emt 0:00:13]} d5 {[%emt 0:01:23]} 2. g3 {[%emt 0:00:14]} Nf6 {[%emt 0:00:23]} 3. Bg2 {[%emt 0:00:07]} c5 {[%emt 0:01:21]} 4. O-O {[%emt 0:00:18]} e6 {[%emt 0:00:24]} 5. c4 {[%emt 0:02:48]} d4 {[%emt 0:00:38]} 6. e3 {[%emt 0:00:53]} Nc6 {[%emt 0:00:19]} 7. exd4 {[%emt 0:01:08]} cxd4 {[%emt 0:00:07]} 8. d3 {[%emt 0:00:12]} Bd6 {[%emt 0:00:32] A13: English Opening: 1...e6.} 9. Bg5 {[%emt 0:01:20]} h6 {[%emt 0:00:34]} 10. Bxf6 {[%emt 0:00:05]} Qxf6 {[%emt 0:00:28] White has an edge.} 11. Nbd2 {[%emt 0:00:06]} O-O {[%emt 0:01:54]} 12. Ne4 {[%emt 0:01:23][%csl LRd6,LRf6]} Qe7 {[%emt 0:00:46]} 13. Nxd6 {[%emt 0:00:14]} Qxd6 {[%emt 0:00:05]} 14. Re1 {[%emt 0:01:06]} e5 {[%emt 0:04:39] [#]} 15. b4 $1 {[%emt 0:01:05][%mdl 64] Deflection} Nxb4 {[%emt 0:18:24]} 16. Nxe5 {[%emt 0:05:34]} Re8 {[%emt 0:05:03] [#]} 17. a3 $146 {[%emt 0:19:19] aiming for Qh5.} ({Predecessor:} 17. Qb3 Be6 18. a3 Nc6 19. Nxc6 bxc6 20. Qb4 Red8 21. Rab1 Rac8 22. Qa5 Qc7 23. Qc5 {½-½ Teclaf,P (2568)-Ohanyan,E (2405) EU-ch 23rd Vrnjacka Banja 2023 (2)}) 17... Nc2 {[%emt 0:31:11][%mdl 64] Discovered Attack} 18. Qxc2 {[%emt 0:05:44]} Rxe5 {[%emt 0:00:16]} 19. Rxe5 {[%emt 0:22:07]} Qxe5 {[%emt 0:00:03]} 20. Qd2 {[%emt 0:00:06] [#] And now Re1 would win.} Qc7 {[%emt 0:08:32]} 21. Qb2 {[%emt 0:01:13]} Qb6 {[%emt 0:02:31]} 22. Qb4 {[%emt 0:08:35] White is more active.} Qd8 {[%emt 0:20:12] Repels c5} (22... Rb8 $16) 23. Re1 {[%emt 0:02:54][%cal Ob4b5]} (23. Bxb7 $2 {too greedy.} Rb8 24. Bxc8 Rxb4 25. axb4 Qxc8 $19) 23... Bf5 {[%emt 0:02:48]} (23... Rb8 $16) 24. Qxb7 $18 {[%emt 0:02:52]} ({Less strong is} 24. Bxb7 Rb8 $14) 24... Rb8 {[%emt 0:00:15]} 25. Qxa7 {[%emt 0:00:05]} ({Not} 25. Qf3 Qa5 26. Rd1 Qe5 $14) 25... Bxd3 {[%emt 0:01:04]} 26. Bd5 {[%emt 0:00:23]} Rb6 $2 {[%emt 0:04:46]} (26... Bg6 27. Qxd4 Rc8) 27. Qxf7+ {[%emt 0:06:59]} Kh7 {[%emt 0:00:02]} 28. Re7 {[%emt 0:02:36][%csl Ge7][%cal Rf7g7]} Rb1+ {[%emt 0:02:06]} 29. Kg2 {[%emt 0:00:04][%csl Ge7][%cal Rf7g7,Bg1g2,Bg2f3,Bf3g4][%mdl 32]} Bf1+ {[%emt 0:00:08]} 30. Kf3 {[%emt 0:00:02][%csl Ge7][%cal Rf7g7]} Rb3+ {[%emt 0:01:34]} 31. Kg4 {[%emt 0:00:33][%csl Ge7][%cal Rf7g7]} Qc8+ {[%emt 0:01:25]} 32. Be6 {[%emt 0:00:09] Weighted Error Value: White=0.02 (flawless) /Black=0.63} 1-0

[Event "Caplin Hastings Masters 2023-24"]
[Site "Hastings"]
[Date "2024.01.01"]
[Round "5.15"]
[White "Hng, Mei-Xian Eunice"]
[Black "Sengupta, Deep"]
[Result "0-1"]
[ECO "A50"]
[WhiteElo "2014"]
[BlackElo "2501"]
[Annotator "TA"]
[PlyCount "58"]
[EventDate "2023.12.18"]
[EventType "swiss"]
[EventCountry "ENG"]
[SourceTitle "playchess.com"]
[Source "ChessBase"]
[SourceQuality "1"]
[TimeControl "40/6000+30:3000+30"]

{[%evp 16,58,0,-28,-9,-48,-26,-62,-43,-50,-40,-83,-79,-106,-101,-100,-100,-98,-97,-95,-93,-103,-103,-102,-95,-110,-99,-156,-154,-157,-159,-163,-170,-310,-302,-374,-343,-366,-374,-668,-650,-643,-631,-627,-622]} 1. Nf3 {[%emt 0:00:19]} Nf6 {[%emt 0:00:09]} 2. c4 {[%emt 0:00:32]} b6 {[%emt 0:01:09]} 3. g3 {[%emt 0:01:35]} Bb7 {[%emt 0:00:07]} 4. Bg2 {[%emt 0:00:05]} g6 {[%emt 0:02:55]} 5. O-O {[%emt 0:01:21]} Bg7 {[%emt 0:00:05]} 6. d4 {[%emt 0:04:46]} O-O {[%emt 0:00:06]} 7. Nc3 {[%emt 0:01:09]} Ne4 {[%emt 0:00:06]} 8. Qc2 {[%emt 0:09:40]} Nxc3 {[%emt 0:00:27]} 9. bxc3 {[%emt 0:00:15]} Nc6 {[%emt 0:03:37] A50: Queen's Fianchetto Defence (1 d4 Nf6 2 c4 b6).} 10. e4 {[%emt 0:06:13]} Ba6 {[%emt 0:01:05]} 11. Qa4 {[%emt 0:14:00]} Na5 {[%emt 0:01:30] Black is slightly better.} 12. Nd2 {[%emt 0:00:57]} c5 {[%emt 0:12:57]} 13. Bb2 {[%emt 0:03:09]} d6 {[%emt 0:04:40] [#]} 14. Bh3 $146 {[%emt 0:17:37]} ({Predecessor:} 14. Rfd1 Qe8 15. Qxe8 Rfxe8 16. Bf1 cxd4 17. cxd4 Rac8 18. Rac1 Rc7 19. Rc2 e6 20. a4 {½-½ Terzic,S (2222)-Dizdarevic,E (2509) Zenica 19th 2016 (5)}) 14... e6 {[%emt 0:04:58]} 15. Nb3 {[%emt 0:07:59]} Qe8 {[%emt 0:03:27]} ({Reject} 15... Bxc4 $6 16. Nxa5 Bxf1 17. Nc6 Bxh3 18. Nxd8 Rfxd8 19. f3 $11) (15... Nxc4 $2 16. Qxa6 b5 17. Rfb1 $18) 16. Qxe8 {[%emt 0:03:46]} Rfxe8 {[%emt 0:00:02]} 17. Nxa5 {[%emt 0:00:07]} bxa5 {[%emt 0:00:05]} 18. dxc5 {[%emt 0:00:36]} dxc5 {[%emt 0:00:07]} 19. Rfc1 {[%emt 0:01:06]} Bxc4 {[%emt 0:00:52]} 20. Ba3 {[%emt 0:00:39]} Rac8 {[%emt 0:00:57] Black is more active.} 21. Rab1 {[%emt 0:07:20]} (21. Bf1 $142 Bxf1 22. Kxf1) 21... a4 $17 {[%emt 0:12:13]} 22. Rb2 {[%emt 0:03:19]} Rb8 {[%emt 0:00:39]} 23. Rxb8 {[%emt 0:12:14]} Rxb8 {[%emt 0:00:13]} 24. Bxc5 {[%emt 0:00:09]} (24. Ra1 {is the only way for White.}) 24... Bxa2 $19 {[%emt 0:00:06]} 25. Bxa7 {[%emt 0:04:17]} Rb1 {[%emt 0:03:09]} 26. Be3 {[%emt 0:00:31]} Bxc3 {[%emt 0:00:31] Strongly threatening ...a3.} 27. Rxb1 $2 {[%emt 0:00:46] [#]} (27. Kg2 Rxc1 28. Bxc1) 27... Bxb1 {[%emt 0:00:03] Black is clearly winning.} 28. Bc1 {[%emt 0:00:21] Against a3} Bxe4 {[%emt 0:00:36]} 29. Ba3 {[%emt 0:00:38]} Bg7 {[%emt 0:00:22] White got outplayed after the opening.   Weighted Error Value: White=0.43/Black=0.04 (flawless)} 0-1

[Event "Caplin Hastings Masters 2023-24"]
[Site "Hastings"]
[Date "2024.01.01"]
[Round "5.16"]
[White "Juknis, Paulius"]
[Black "Gormally, Daniel W"]
[Result "1-0"]
[ECO "B51"]
[WhiteElo "2148"]
[BlackElo "2442"]
[Annotator "RC"]
[PlyCount "79"]
[EventDate "2023.12.18"]
[EventType "swiss"]
[EventCountry "ENG"]
[SourceTitle "playchess.com"]
[Source "ChessBase"]
[SourceQuality "1"]
[TimeControl "40/6000+30:3000+30"]

1. e4 {[%emt 0:00:08]} c5 {[%emt 0:00:12]} 2. Nf3 {[%emt 0:00:20]} d6 {[%emt 0:01:02]} 3. Bb5+ {[%emt 0:00:20]} Nd7 {[%emt 0:01:09]} 4. c3 {[%emt 0:00:31]} Ngf6 {[%emt 0:00:35]} 5. Qe2 {[%emt 0:00:14]} e6 {[%emt 0:00:47]} 6. d4 {[%emt 0:01:21]} a6 {[%emt 0:00:36]} 7. Bd3 {[%emt 0:00:34]} b5 {[%emt 0:01:14]} 8. O-O {[%emt 0:02:09]} Bb7 {[%emt 0:00:04]} 9. a4 {[%emt 0:08:14]} b4 {[%emt 0:07:40]} 10. cxb4 {[%emt 0:02:55]} cxd4 {[%emt 0:03:04]} 11. Nxd4 {[%emt 0:01:14]} Ne5 {[%emt 0:00:03]} 12. Nc3 {[%emt 0:07:01]} d5 {[%emt 0:00:56]} 13. exd5 {[%emt 0:07:49]} Nxd3 {[%emt 0:00:12]} 14. Qxd3 {[%emt 0:00:37]} Nxd5 {[%emt 0:00:08]} 15. b5 {[%emt 0:01:00]} Nb4 {[%emt 0:08:22]} 16. Qd2 {[%emt 0:11:04]} Be7 {[%emt 0:15:07]} 17. bxa6 {[%emt 0:06:04]} Rxa6 {[%emt 0:01:04]} 18. Ndb5 {[%emt 0:00:30]} Qb8 {[%emt 0:05:33]} 19. Qe2 {[%emt 0:05:44]} O-O {[%emt 0:04:49]} 20. Be3 {[%emt 0:03:12]} e5 {[%emt 0:02:51]} 21. f3 {[%emt 0:01:15]} Rg6 {[%emt 0:01:21]} 22. Kh1 {[%emt 0:05:38]} Qc8 {[%emt 0:04:09]} 23. Rad1 {[%emt 0:02:03]} h5 {[%emt 0:05:41]} 24. Bg1 {[%emt 0:07:43]} h4 {[%emt 0:04:11]} 25. h3 {[%emt 0:01:27]} Qe6 {[%emt 0:00:21]} 26. Nc7 {[%emt 0:03:10]} Qb3 {[%emt 0:00:41]} 27. Qxe5 {[%emt 0:06:08]} Bf6 {[%emt 0:08:48]} 28. Qe2 {[%emt 0:00:23]} Bxc3 {[%emt 0:01:17]} 29. bxc3 {[%emt 0:00:07]} Nd5 {[%emt 0:06:16]} 30. Nxd5 {[%emt 0:07:38]} Bxd5 {[%emt 0:00:05]} 31. Qd2 {[%emt 0:00:39]} Bc4 {[%emt 0:03:45]} 32. Rfe1 {[%emt 0:02:01]} Qxa4 {[%emt 0:01:25]} 33. Re4 {[%emt 0:01:03]} Re6 {[%emt 0:04:29]} 34. Rxh4 {[%emt 0:05:19]} Qc6 {[%emt 0:00:09]} 35. Bd4 {[%emt 0:00:55]} f6 {[%emt 0:00:10]} 36. Qc2 {[%emt 0:02:07]} f5 {[%emt 0:00:04]} 37. Qd2 {[%emt 0:00:42]} Rg6 {[%emt 0:00:36]} 38. Re1 {[%emt 0:01:16]} Ra8 {[%emt 0:01:04]} 39. Qf4 {[%emt 0:02:14]} Be6 {[%emt 0:00:35]} 40. Rh5 {[%emt 0:00:46]} 1-0

[Event "Caplin Hastings Masters 2023-24"]
[Site "Hastings"]
[Date "2024.01.01"]
[Round "5.17"]
[White "Vasiliadis, Theodoros"]
[Black "Bozinakis, Pavlos"]
[Result "0-1"]
[ECO "A29"]
[WhiteElo "1845"]
[BlackElo "2274"]
[Annotator "RC"]
[PlyCount "82"]
[EventDate "2023.12.18"]
[EventType "swiss"]
[EventCountry "ENG"]
[SourceTitle "playchess.com"]
[Source "ChessBase"]
[SourceQuality "1"]
[TimeControl "40/6000+30:3000+30"]

1. c4 {[%emt 0:00:03]} e5 {[%emt 0:00:42]} 2. Nc3 {[%emt 0:00:15]} Nf6 {[%emt 0:00:21]} 3. Nf3 {[%emt 0:00:23]} Nc6 {[%emt 0:00:14]} 4. g3 {[%emt 0:00:14]} d5 {[%emt 0:01:02]} 5. cxd5 {[%emt 0:00:15]} Nxd5 {[%emt 0:00:11]} 6. Bg2 {[%emt 0:00:07]} Bc5 {[%emt 0:00:18]} 7. O-O {[%emt 0:00:49]} O-O {[%emt 0:00:19]} 8. d3 {[%emt 0:01:36]} h6 {[%emt 0:01:00]} 9. Bd2 {[%emt 0:01:03]} Be6 {[%emt 0:04:46]} 10. Rc1 {[%emt 0:05:01]} Bb6 {[%emt 0:00:53]} 11. a3 {[%emt 0:06:46]} Re8 {[%emt 0:07:38]} 12. Na4 {[%emt 0:18:14]} Qd6 {[%emt 0:03:45]} 13. b4 {[%emt 0:05:08]} Rad8 {[%emt 0:06:58]} 14. Nc5 {[%emt 0:01:05]} Bc8 {[%emt 0:01:01]} 15. Qb3 {[%emt 0:07:25]} Nd4 {[%emt 0:09:44]} 16. Nxd4 {[%emt 0:06:09]} exd4 {[%emt 0:00:12]} 17. Bf3 {[%emt 0:09:39]} c6 {[%emt 0:01:55]} 18. a4 {[%emt 0:03:04]} Bxc5 {[%emt 0:05:42]} 19. Rxc5 {[%emt 0:01:17]} Be6 {[%emt 0:04:18]} 20. Qb2 {[%emt 0:00:18]} Nb6 {[%emt 0:07:32]} 21. Qa1 {[%emt 0:06:51]} Nd7 {[%emt 0:02:07]} 22. Bf4 {[%emt 0:03:40]} Qe7 {[%emt 0:00:15]} 23. Rc2 {[%emt 0:07:17]} g5 {[%emt 0:00:52]} 24. Bd2 {[%emt 0:01:03]} Ne5 {[%emt 0:00:36]} 25. Bg2 {[%emt 0:02:45]} Bd5 {[%emt 0:01:29]} 26. b5 {[%emt 0:01:56]} Bxg2 {[%emt 0:01:51]} 27. Kxg2 {[%emt 0:00:03]} c5 {[%emt 0:00:54]} 28. Qb2 {[%emt 0:07:58]} b6 {[%emt 0:01:28]} 29. Ra1 {[%emt 0:04:46]} Qb7+ {[%emt 0:00:37]} 30. Kg1 {[%emt 0:00:14]} c4 {[%emt 0:00:28]} 31. Rxc4 {[%emt 0:01:45]} Nxc4 {[%emt 0:00:32]} 32. dxc4 {[%emt 0:00:03]} Rxe2 {[%emt 0:00:37]} 33. Re1 {[%emt 0:00:53]} Qf3 {[%emt 0:01:28]} 34. Rxe2 {[%emt 0:00:51]} Qxe2 {[%emt 0:00:12]} 35. Qc1 {[%emt 0:00:56]} d3 {[%emt 0:01:17]} 36. Qc3 {[%emt 0:01:11]} Re8 {[%emt 0:00:56]} 37. a5 {[%emt 0:01:58]} Qf3 {[%emt 0:01:40]} 38. axb6 {[%emt 0:01:31]} axb6 {[%emt 0:00:13]} 39. c5 {[%emt 0:02:46]} Re2 {[%emt 0:01:28]} 40. Be1 {[%emt 0:01:19]} Rc2 {[%emt 0:02:11]} 41. Qe5 {[%emt 0:50:56]} Qe2 {[%emt 0:51:10]} 0-1